Workbook

Sheet BoQ1 (hidden)
A1: =B2& " BoQ" -> Item Rate BoQ
A2: BoQ_Ver3.0 | B2: Item Rate | C2: Normal | D2: INR Only | E2: INR
A3: Select, Excess (+), Less (-) | C3: Less (-)
A4: Tender Inviting Authority: JABALPUR SMART CITY LIMITED
A5: Name of Work: Design, Supply and Installation of tensile membrane roof covering with supporting system and related civil & Drainage works at Galaua Taal, Jabalpur
A6: Contract No:
A8: Name of the Bidder/ Bidding Firm / Company :
A9: PRICE SCHEDULE (This BOQ template must not be modified/replaced by the bidder and the same should be uploaded after filling the relevent columns, else the bidder is liable to be rejected for this tender. Bidders are allowed to enter the Bidder Name and Values only )
A10: NUMBER # | B10: TEXT # | C10: TEXT # | D10: NUMBER # | E10: TEXT # | F10: NUMBER | G10: NUMBER | H10: TEXT | I10: TEXT # | J10: NUMBER # | K10: TEXT# | L10: TEXT # | M10: NUMBER # | N10: NUMBER | O10: NUMBER | P10: NUMBER | Q10: NUMBER | R10: TEXT | S10: TEXT | T10: NUMBER | U10: NUMBER | V10: NUMBER | W10: NUMBER | X10: TEXT | Y10: TEXT | Z10: NUMBER | AA10: NUMBER | AB10: NUMBER | AC10: NUMBER | AD10: TEXT | AE10: TEXT | AF10: NUMBER | AG10: NUMBER | AH10: NUMBER | AI10: NUMBER | AJ10: TEXT | AK10: TEXT | AL10: NUMBER | AM10: NUMBER | AN10: NUMBER | AO10: NUMBER | AP10: TEXT | AQ10: TEXT | AR10: NUMBER | AS10: NUMBER | AT10: NUMBER # | AU10: NUMBER # | AV10: TEXT | AW10: TEXT | AX10: NUMBER # | AY10: NUMBER # | AZ10: DATE | BA10: NUMBER # | BB10: NUMBER # | BC10: TEXT #
A11: Sl. No. | B11: Item Description | C11: Item Code / Make | D11: Quantity | E11: Units | F11: Estimated Rate in Rs. P | I11: Addition / Deduction | J11: Addition / Deduction Values | K11: Currency Convertion against each Item | L11: Quoted Currency in INR / Other Currency | M11: BASIC RATE In Figures To be entered by the Bidder in Rs. P | N11: Excise Duty | O11: VAT | P11: Freight Charges ( Unloading & Stacking) | Q11: Any Other Taxes/Duties/Levies | T11: Other Taxes 2 | U11: IIIrd Party i.e DGS&D / RITES etc Inspection Charges @0.34%+Service Tax | V11: Less for Cenvat Credit,if any respect of Supplies Under full Excise Duty Category | BA11: TOTAL AMOUNT Without Taxes in Rs. P | BB11: TOTAL AMOUNT With Taxes | BC11: TOTAL AMOUNT In Words
A12: 1 | B12: 2 | C12: 3 | D12: 4 | E12: 5 | F12: 6 | G12: 7 | H12: 8 | I12: 9 | J12: 10 | K12: 11 | L12: 12 | M12: 13 | N12: 14 | O12: 15 | P12: 16 | Q12: 17 | R12: 18 | S12: 19 | T12: 20 | U12: 21 | V12: 22 | W12: 23 | X12: 24 | Y12: 25 | Z12: 26 | AA12: 27 | AB12: 28 | AC12: 29 | AD12: 30 | AE12: 31 | AF12: 32 | AG12: 33 | AH12: 34 | AI12: 35 | AJ12: 36 | AK12: 37 | AL12: 38 | AM12: 39 | AN12: 40 | AO12: 41 | AP12: 42 | AQ12: 43 | AR12: 44 | AS12: 45 | AT12: 46 | AU12: 47 | AV12: 48 | AW12: 49 | AX12: 50 | AY12: 51 | AZ12: 52 | BA12: 53 | BB12: 54 | BC12: 55
A13: 1 | B13: Design, Supply and Installation of tensile membrane roof covering with supporting system | IE13: 1 | IF13: Construction of chamber for 100mm sluices valve | IG13: item1 | IH13: 10 | II13: 1 Nos
A14: 1.01 | B14: Design, Fabrication, Supply & Installation at site of :- Steel work in built up tubular(SHS/RHS/CHS), MS rolled structural members such as Angles, Channels & Plates etc. including cutting, hoisting fixing in position, welded and bolted including special shaped washers etc. complete as per direction of Engineer in charge Hot finished welded type tubes, Confirming ERW Pipes "IS 1161 / IS 1239 YST 310/240" Upto 350mm dia "IS 3589 YST 310/240"(for above 350mm dia) SHS/RHS "IS 4923" (TATA / JINDAL / BHUSHAN / SAIL) and plate as per "IS 2062 E250" all plates to be CNC profile cut, Steel work cost includes architectural covering with SS 316 sheet of the gutter ring, clits & insert tubes for light fixing, drainage pipe & electrical cable pipe to be GI with elbows and bends cladded with Fabric TYPE II PVC coated polyester, surface coating of "cross link PVDF" wt of 1050 GSM, Tensile strength of 430/430 Dan/5Cm, light transmittance of 8%, (Ferrari /Mehler or equivalent), Tensioned over steel frames with all fittings and fixtures such as catenary cables , membrane plates, swedge, fork etc. as per the direction of Engineer in Charge. inclusive of design, providing and fixing fabric with all necessary accessories as required as per approved design complete. (Material Specification :-Tie Cables Galvanized Steel Core (Make :- Usha Martin / Bharat Wire Rope etc.), Material of End terminals and Nut bolts SS 304, forged HDGI bow shackles, End plates Mild Steel with Hot dip galvanized along with powder coating , Fabric Fixing Nuts and bolts HDG with 80 microns all complete. | D14: 3200 | E14: SqM | F14: 7750 | I14: Excess(+) | J14: =IF(I14="Less(-)",-1,1) -> 1 | K14: Full Conversion | L14: INR | BA14: =total_amount_ba($B$2,$D$2,D14,F14,J14,K14,M14) -> 0 | BB14: =BA14+SUM(N14:AZ14) -> 0 | BC14: =SpellNumber(L14,BB14) -> INR Zero Only | IE14: 1.01 | IF14: Supplying, Conveying and fixing spls. Including eart | IG14: item1 | IH14: 123.223 | II14: Nos
A15: Total in Figures | BA15: =SUM(BA13:BA14) -> 0 | BB15: =SUM(BB13:BB14) -> 0 | BC15: =SpellNumber($E$2,BB15) -> INR Zero Only | IE15: 4 | IF15: Construction of chamber for 100mm sluice plates | IG15: item5 | IH15: 10 | II15: Nos
A16: Quoted Rate in Figures | E16: Select | BA16: =IF(ISBLANK(F16),0,IF(E16="Excess (+)",ROUND(BA15+(BA15*F16),2),IF(E16="Less (-)",ROUND(BA15+(BA15*F16*(-1)),2),0))) -> 0 | BB16: =ROUND(BA16,0) -> 0 | BC16: =SpellNumber(L16,BB16) -> Zero Only
A17: Quoted Rate in Words | C17: =SpellNumber($E$2,BB15) -> INR Zero Only

Sheet BoQ2 (hidden)
A1: =B2& " BoQ" -> Percentage BoQ
A2: BoQ_Ver3.0 | B2: Percentage | C2: Normal | D2: INR Only | E2: INR
A3: Select, At Par, Excess (+), Less (-) | C3: IOCL
A4: Tender Inviting Authority: JABALPUR SMART CITY LIMITED
A5: Name of Work: Design, Supply and Installation of tensile membrane roof covering with supporting system and related civil & Drainage works at Galaua Taal, Jabalpur
A6: Contract No:
A8: Name of the Bidder/ Bidding Firm / Company :
A9: PRICE SCHEDULE (This BOQ template must not be modified/replaced by the bidder and the same should be uploaded after filling the relevent columns, else the bidder is liable to be rejected for this tender. Bidders are allowed to enter the Bidder Name and Values only )
A10: NUMBER # | B10: TEXT # | C10: TEXT # | D10: NUMBER # | E10: TEXT # | F10: NUMBER | G10: NUMBER | H10: TEXT | I10: TEXT # | J10: NUMBER # | K10: TEXT# | L10: TEXT # | M10: NUMBER # | N10: NUMBER | O10: NUMBER | P10: NUMBER | Q10: NUMBER | R10: TEXT | S10: TEXT | T10: NUMBER | U10: NUMBER | V10: NUMBER | W10: NUMBER | X10: TEXT | Y10: TEXT | Z10: NUMBER | AA10: NUMBER | AB10: NUMBER | AC10: NUMBER | AD10: TEXT | AE10: TEXT | AF10: NUMBER | AG10: NUMBER | AH10: NUMBER | AI10: NUMBER | AJ10: TEXT | AK10: TEXT | AL10: NUMBER | AM10: NUMBER | AN10: NUMBER | AO10: NUMBER | AP10: TEXT | AQ10: TEXT | AR10: NUMBER | AS10: NUMBER | AT10: NUMBER # | AU10: NUMBER # | AV10: TEXT | AW10: TEXT | AX10: NUMBER # | AY10: NUMBER # | AZ10: DATE | BA10: NUMBER # | BB10: NUMBER # | BC10: TEXT #
A11: Sl. No. | B11: Item Description | C11: Item Code / Make | D11: Quantity | E11: Units | F11: Estimated Rate in Rs. P | I11: Addition / Deduction | J11: Addition / Deduction Values | K11: Currency Convertion against each Item | L11: Quoted Currency in INR / Other Currency | M11: BASIC RATE In Figures To be entered by the Bidder Rs. P | N11: Excise Duty | O11: VAT | P11: Freight Charges ( Unloading & Stacking) | Q11: Any Other Taxes/Duties/Levies | T11: Other Taxes 2 | U11: IIIrd Party i.e DGS&D / RITES etc Inspection Charges @0.34%+Service Tax | V11: Less for Cenvat Credit,if any respect of Supplies Under full Excise Duty Category | BA11: TOTAL AMOUNT Without Taxes in Rs. P | BB11: TOTAL AMOUNT With Taxes | BC11: TOTAL AMOUNT In Words
A12: 1 | B12: 2 | C12: 3 | D12: 4 | E12: 5 | F12: 6 | G12: 7 | H12: 8 | I12: 9 | J12: 10 | K12: 11 | L12: 12 | M12: 13 | N12: 14 | O12: 15 | P12: 16 | Q12: 17 | R12: 18 | S12: 19 | T12: 20 | U12: 21 | V12: 22 | W12: 23 | X12: 24 | Y12: 25 | Z12: 26 | AA12: 27 | AB12: 28 | AC12: 29 | AD12: 30 | AE12: 31 | AF12: 32 | AG12: 33 | AH12: 34 | AI12: 35 | AJ12: 36 | AK12: 37 | AL12: 38 | AM12: 39 | AN12: 40 | AO12: 41 | AP12: 42 | AQ12: 43 | AR12: 44 | AS12: 45 | AT12: 46 | AU12: 47 | AV12: 48 | AW12: 49 | AX12: 50 | AY12: 51 | AZ12: 52 | BA12: 53 | BB12: 54 | BC12: 55
A13: 1 | B13: DRAINAGE
A14: 1.01 | B14: EARTHWORK Earth work in Excavation for pipe trench in all kinds of soil and WBM in areas including dressing, watering and ramming and disposal of Excavated earth lead upto 50 meters and lift upto 1.5m, disposal earth to be leveled, neatly dressed. | D14: 111.1 | E14: CuM | F14: 116.19 | I14: Excess(+) | J14: =IF(I14="Less(-)",-1,1) -> 1 | K14: Full Conversion | L14: INR | BA14: =total_amount_ba($B$2,$D$2,D14,F14,J14,K14,M14) -> 12908.71 | BB14: =BA14+SUM(N14:AZ14) -> 12908.71 | BC14: =SpellNumber(L14,BB14) -> INR Twelve Thousand Nine Hundred & Eight and Paise Seventy One Only | IE14: 1.01 | IF14: Supplying, Conveying and fixing spls. Including eart | IG14: item1 | IH14: 123.223 | II14: Nos
A15: 1.02 | B15: Providing & laying mechanically mixed cement concrete 20mm maximum size graded crushed stone including cost of centering & shuttering. In Plinth & foundation M-15 Concrete | D15: 9.9 | E15: CuM | F15: 300 | I15: Excess(+) | J15: =IF(I15="Less(-)",-1,1) -> 1 | K15: Full Conversion | L15: INR | BA15: 3888.9 | BB15: =BA15+SUM(N15:AZ15) -> 3888.9 | BC15: =SpellNumber(L15,BB15) -> INR Three Thousand Eight Hundred & Eighty Eight and Paise Ninety Only | IE15: 1.02 | IF15: Construction of chamber for 100mm sluice plates | IG15: item2 | IH15: 213 | II15: Nos
A16: 1.03 | B16: Filling with moorum for pipe bedding or over the pipe including supply of moorum. | D16: 45.5 | E16: CuM | F16: 562.5 | I16: Excess(+) | J16: =IF(I16="Less(-)",-1,1) -> 1 | K16: Full Conversion | L16: INR | BA16: =total_amount_ba($B$2,$D$2,D16,F16,J16,K16,M16) -> 25593.75 | BB16: =BA16+SUM(N16:AZ16) -> 25593.75 | BC16: =SpellNumber(L16,BB16) -> INR Twenty Five Thousand Five Hundred & Ninety Three and Paise Seventy Five Only | IE16: 2 | IF16: Construction of chamber for 100mm sluices valve | IG16: item3 | IH16: 10 | II16: Nos
A17: 1.04 | B17: Filling available excavated earth in trenches, plinth sides of foundation in layers not exceeding 20cm. in depth including consolidation of each layer by ramming watering, lead up to 50m and lift up to 1.5m in all kinds of soils | D17: 19.8 | E17: Nos | F17: 26.1 | I17: Excess(+) | J17: =IF(I17="Less(-)",-1,1) -> 1 | K17: Full Conversion | L17: INR | BA17: =total_amount_ba($B$2,$D$2,D17,F17,J17,K17,M17) -> 516.78 | BB17: =BA17+SUM(N17:AZ17) -> 516.78 | BC17: =SpellNumber(L17,BB17) -> INR Five Hundred & Sixteen and Paise Seventy Eight Only | IE17: 3 | IF17: Supplying, Conveying and fixing spls. Including ea | IG17: item4 | IH17: 10 | II17: Nos
A18: 1.05 | B18: Providing and Laying non-pressure (NP3) RCC socket & spigot pipes with rubber gasket joint including testing of joints. [ Conforming to IS ; 458-1988, ISI marked laying as per IS 783:1985) | IE18: 3 | IF18: Supplying, Conveying and fixing spls. Including ea | IG18: item4 | IH18: 10 | II18: Nos
A19: 1.0501 | B19: 300 MM | D19: 110 | E19: Mtr | F19: 744.3 | I19: Excess(+) | J19: =IF(I19="Less(-)",-1,1) -> 1 | K19: Full Conversion | L19: INR | BA19: =total_amount_ba($B$2,$D$2,D19,F19,J19,K19,M19) -> 81873 | BB19: =BA19+SUM(N19:AZ19) -> 81873 | BC19: =SpellNumber(L19,BB19) -> INR Eighty One Thousand Eight Hundred & Seventy Three Only | IE19: 1.01 | IF19: Supplying, Conveying and fixing spls. Including eart | IG19: item1 | IH19: 123.223 | II19: Nos
A20: 1.0502 | B20: 600 MM | D20: 55 | E20: Mtr | F20: 2697.3 | I20: Excess(+) | J20: =IF(I20="Less(-)",-1,1) -> 1 | K20: Full Conversion | L20: INR | BA20: =total_amount_ba($B$2,$D$2,D20,F20,J20,K20,M20) -> 148351.5 | BB20: =BA20+SUM(N20:AZ20) -> 148351.5 | BC20: =SpellNumber(L20,BB20) -> INR One Lakh Forty Eight Thousand Three Hundred & Fifty One and Paise Fifty Only | IE20: 1.02 | IF20: Construction of chamber for 100mm sluice plates | IG20: item2 | IH20: 213 | II20: Nos
A21: 1.06 | B21: Constructing Brick masonry manhole in cement mortar 1:4 (1cement:4 fine sand) RCC top slab Cement Concrete grade M-15 (Nominal Mix) with stone aggregate 20mm nominal size, foundation in cement concrete grade M-7.5 (Nominal Mix) with stone aggregate 40mm nominal size, inside plastering 12 mm thick with cement mortar 1:3 (1 cement:3 coarse sand) finished with a floating coat of neat cement and making channels in Cement Concrete grade M-15 (Nominal Mix) with stone aggregate 20mm nominal size including finishing the channel to shape, curing etc. with CI cover with frame etc. | IE21: 3 | IF21: Supplying, Conveying and fixing spls. Including ea | IG21: item4 | IH21: 10 | II21: Nos
A22: 1.0601 | B22: Man hole with above specifications having inside size 90x80 cm and 60 cm deep including C.I. cover with frame (light duty) 455x610 mm internal dimensions total weight of cover and frame to be not less than 38 kg (weight of cover 23 kg and weight of frame 15 kg): | D22: 9 | E22: Each | F22: 7225.2 | I22: Excess(+) | J22: =IF(I22="Less(-)",-1,1) -> 1 | K22: Full Conversion | L22: INR | BA22: =total_amount_ba($B$2,$D$2,D22,F22,J22,K22,M22) -> 65026.8 | BB22: =BA22+SUM(N22:AZ22) -> 65026.8 | BC22: =SpellNumber(L22,BB22) -> INR Sixty Five Thousand &Twenty Six and Paise Eighty Only | IE22: 1.01 | IF22: Supplying, Conveying and fixing spls. Including eart | IG22: item1 | IH22: 123.223 | II22: Nos
A23: 1.0602 | B23: Man hole with above specifications having inside size 120x90 cm and 90 cm deep including C.I. cover with frame (heavy duty) 560 mm internal diameter, total weight of cover and frame to be not less than 208 kg (weight of cover 108 kg and weight of frame 100 kg)ground moulded chamber burnt bricks with including cost | D23: 5 | E23: Each | F23: 18351.9 | I23: Excess(+) | J23: =IF(I23="Less(-)",-1,1) -> 1 | K23: Full Conversion | L23: INR | BA23: =total_amount_ba($B$2,$D$2,D23,F23,J23,K23,M23) -> 91759.5 | BB23: =BA23+SUM(N23:AZ23) -> 91759.5 | BC23: =SpellNumber(L23,BB23) -> INR Ninety One Thousand Seven Hundred & Fifty Nine and Paise Fifty Only | IE23: 1.02 | IF23: Construction of chamber for 100mm sluice plates | IG23: item2 | IH23: 213 | II23: Nos
A24: 1.07 | B24: Extra for depth of man holes given at item 14.2 | IE24: 3 | IF24: Supplying, Conveying and fixing spls. Including ea | IG24: item4 | IH24: 10 | II24: Nos
A25: 1.0701 | B25: 90x80cm size manhole | D25: 4 | E25: Mtr | F25: 4390.2 | I25: Excess(+) | J25: =IF(I25="Less(-)",-1,1) -> 1 | K25: Full Conversion | L25: INR | BA25: =total_amount_ba($B$2,$D$2,D25,F25,J25,K25,M25) -> 17560.8 | BB25: =BA25+SUM(N25:AZ25) -> 17560.8 | BC25: =SpellNumber(L25,BB25) -> INR Seventeen Thousand Five Hundred & Sixty and Paise Eighty Only | IE25: 1.01 | IF25: Supplying, Conveying and fixing spls. Including eart | IG25: item1 | IH25: 123.223 | II25: Nos
A26: 1.0702 | B26: 120x90cm size manhole | D26: 2.5 | E26: Mtr | F26: 5252.4 | I26: Excess(+) | J26: =IF(I26="Less(-)",-1,1) -> 1 | K26: Full Conversion | L26: INR | BA26: =total_amount_ba($B$2,$D$2,D26,F26,J26,K26,M26) -> 13131 | BB26: =BA26+SUM(N26:AZ26) -> 13131 | BC26: =SpellNumber(L26,BB26) -> INR Thirteen Thousand One Hundred & Thirty One Only | IE26: 1.02 | IF26: Construction of chamber for 100mm sluice plates | IG26: item2 | IH26: 213 | II26: Nos
A27: 1.08 | B27: Providing & laying mechanically mixed cement concrete 20mm maximum size graded crushed stone including cost of centering & shuttering. | D27: 9.9 | E27: CuM | F27: 4300.2 | I27: Excess(+) | J27: =IF(I27="Less(-)",-1,1) -> 1 | K27: Full Conversion | L27: INR | BA27: =total_amount_ba($B$2,$D$2,D27,F27,J27,K27,M27) -> 42571.98 | BB27: =BA27+SUM(N27:AZ27) -> 42571.98 | BC27: =SpellNumber(L27,BB27) -> INR Forty Two Thousand Five Hundred & Seventy One and Paise Ninety Eight Only | IE27: 2 | IF27: Construction of chamber for 100mm sluices valve | IG27: item3 | IH27: 10 | II27: Nos
A28: 2 | B28: CIVIL WORKS
A29: 2.01 | B29: Demolishing cement concrete manually/by mechanical means including disposal of material within 50 meters lead as per direction of Engineer-in-charge. 1:3:6 or richer mix | D29: 201.6 | E29: CuM | F29: 427.5 | I29: Excess(+) | J29: =IF(I29="Less(-)",-1,1) -> 1 | K29: Full Conversion | L29: INR | BA29: =total_amount_ba($B$2,$D$2,D29,F29,J29,K29,M29) -> 86184 | BB29: =BA29+SUM(N29:AZ29) -> 86184 | BC29: =SpellNumber(L29,BB29) -> INR Eighty Six Thousand One Hundred & Eighty Four Only | IE29: 1.01 | IF29: Supplying, Conveying and fixing spls. Including eart | IG29: item1 | IH29: 123.223 | II29: Nos
A30: 2.02 | B30: Earth work in excavation by mechanical means (Hydraulic excavator) / manual means over areas (exceeding 30cm in depth. 1.5m in width as well as 10 sqm on plan) including disposal of excavated earth, lead upto 50m and lift upto 1.5m, disposed earth to be levelled and neatly dressed. All kinds of Soil | D30: 1478 | E30: CuM | F30: 114.3 | I30: Excess(+) | J30: 1 | K30: Full Conversion | L30: INR | BA30: 168935.4 | BB30: 168935.4 | BC30: INR One Lakh Sixty Eight Thousand Nine Hundred & Thirty Five and Paise Forty Only | IE30: 1.01 | IF30: Supplying, Conveying and fixing spls. Including eart | IG30: item1 | IH30: 123.223 | II30: Nos
A31: 2.03 | B31: Supplying and filling in plinth under floors including, watering, ramming consolidating and dressing complete. Crusher Stone Dust | D31: 67.2 | E31: CuM | F31: 565.2 | I31: Excess(+) | J31: 1 | K31: Full Conversion | L31: INR | BA31: 37981.44 | BB31: 37981.44 | BC31: INR Thirty Seven Thousand Nine Hundred & Eighty One and Paise Forty Four Only | IE31: 1.01 | IF31: Supplying, Conveying and fixing spls. Including eart | IG31: item1 | IH31: 123.223 | II31: Nos
A32: 2.04 | B32: Filling by available excavated earth (excluding rock) in trenches, plinth, sides of foundations etc. in layers not exceeding 20cm in depth, consolidating each deposited layer by ramming and watering, lead up to 50 m and lift upto 1.5 m. All kinds of soils | D32: 910.14 | E32: CuM | F32: 26.1 | I32: Excess(+) | J32: 1 | K32: Full Conversion | L32: INR | BA32: =total_amount_ba($B$2,$D$2,D32,F32,J32,K32,M32) -> 23754.65 | BB32: =BA32+SUM(N32:AZ32) -> 23754.65 | BC32: =SpellNumber(L32,BB32) -> INR Twenty Three Thousand Seven Hundred & Fifty Four and Paise Sixty Five Only | IE32: 1.02 | IF32: Construction of chamber for 100mm sluice plates | IG32: item2 | IH32: 213 | II32: Nos
A33: 2.05 | B33: Providing and laying in position cement concrete of specified grade excluding the cost of centering and shuttering All work up to plinth level. Cement concrete grade M-20(Nominal Mix) with 20 mm maximum size of stone aggregate | D33: 201.6 | E33: CuM | F33: 4134.6 | I33: Excess(+) | J33: 1 | K33: Full Conversion | L33: INR | BA33: 833535.36 | BB33: 833535.36 | BC33: INR Eight Lakh Thirty Three Thousand Five Hundred & Thirty Five and Paise Thirty Six Only | IE33: 1.02 | IF33: Construction of chamber for 100mm sluice plates | IG33: item2 | IH33: 213 | II33: Nos
A34: 2.06 | B34: Providing and laying in position cement concrete of specified grade excluding the cost of centering and shuttering All work up to plinth level. Cement concrete grade M-15 (Nominal Mix) with 20 mm maximum size of stone aggregate | D34: 67.2 | E34: CuM | F34: 3748.6 | I34: Excess(+) | J34: 1 | K34: Full Conversion | L34: INR | BA34: =total_amount_ba($B$2,$D$2,D34,F34,J34,K34,M34) -> 251905.92 | BB34: =BA34+SUM(N34:AZ34) -> 251905.92 | BC34: =SpellNumber(L34,BB34) -> INR Two Lakh Fifty One Thousand Nine Hundred & Five and Paise Ninety Two Only | IE34: 2 | IF34: Construction of chamber for 100mm sluices valve | IG34: item3 | IH34: 10 | II34: Nos
A35: 2.07 | B35: Providing and laying in position machine batched, machine mixed and machine vibrated design mix cement concrete of specified grade for reinforced cement concrete work including pumping of concrete to site of laying but excluding the cost of centering, shuttering, finishing and reinforcement. including Admixtures in recommended proportions as per IS 9103 to accelerate, retard setting of concrete, improve workability without impairing strength and durability as per direction of Engineer-in-charge. M-25 grade reinforced cement concrete by using 410 kg. of cement per cum of concrete. All work up to floor 2 level. | D35: 434.07 | E35: CuM | F35: 4720.5 | I35: Excess(+) | J35: 1 | K35: Full Conversion | L35: INR | BA35: 2049027.44 | BB35: 2049027.44 | BC35: INR Twenty Lakh Forty Nine Thousand &Twenty Seven and Paise Forty Four Only | IE35: 2 | IF35: Construction of chamber for 100mm sluices valve | IG35: item3 | IH35: 10 | II35: Nos
A36: 2.08 | B36: Reinforcement for R.C.C. work including straightening, cutting, bending, placing in position and binding including cost of binding wire upto floor two level including all wastage etc. complete. Thermo-Mechanically Treated bars. | D36: 37981.44 | E36: Nos | F36: 54 | I36: Excess(+) | J36: 1 | K36: Full Conversion | L36: INR | BA36: 2050997.76 | BB36: 2050997.76 | BC36: INR Twenty Lakh Fifty Thousand Nine Hundred & Ninety Seven and Paise Seventy Six Only | IE36: 1.01 | IF36: Supplying, Conveying and fixing spls. Including eart | IG36: item1 | IH36: 123.223 | II36: Nos
A37: Total in Figures | BA37: =SUM(BA14:BA36) -> 6005504.69 | BB37: =SUM(BB14:BB36) -> 6005504.69 | BC37: =SpellNumber($E$2,BB37) -> INR Sixty Lakh Five Thousand Five Hundred & Four and Paise Sixty Nine Only | IE37: 4 | IF37: Construction of chamber for 100mm sluice plates | IG37: item5 | IH37: 10 | II37: Nos
A38: Quoted Rate in Figures | E38: Select | BA38: =IF(ISBLANK(F38),0,IF(E38="Excess (+)",ROUND(BA37+(BA37*F38),2),IF(E38="Less (-)",ROUND(BA37+(BA37*F38*(-1)),2),IF(E38="At Par",BA37,0)))) -> 0 | BB38: =ROUND(BA38,0) -> 0 | BC38: =SpellNumber($E$2,BB38) -> INR Zero Only
A39: Quoted Rate in Words | C39: =SpellNumber($E$2,BB38) -> INR Zero Only

Sheet Macros
E6: Please Enable Macros to View BoQ information
